bitfinex/quotes_ETHUSD_20250328
["timestamp","ask_amount","ask_price","bid_price","bid_amount"]
[1743177650055,5.431,1877.2,1877.1,3.83631982]
[1743177650241,5.431,1877.2,1877.1,10.91763764]
[1743177650431,5.431,1877.2,1877.1,9.59653764]
[1743177651068,5.431,1877.2,1877.1,10.00426565]
[1743177651431,28.196,1877.4,1877.1,15.33154565]
[1743177651667,28.196,1877.4,1877.3,3.83631982]
[1743177651851,33.633,1877.4,1877.3,3.83631982]
[1743177652937,0.05,1877.9,1877.3,9.71310982]
[1743177653141,0.05,1877.9,1877.7,3.83631982]
[1743177653342,5.432,1877.8,1877.7,3.83631982]
[1743177656091,5.432,1877.8,1877.7,4.2317796]
[1743177656272,6.2527,1877.8,1877.7,4.2317796]
[1743177658646,6.2527,1877.8,1877.5,3.83631982]
[1743177658852,6.2527,1877.8,1877.4,3.83631982]
[1743177659156,5.448,1877.7,1877.6,3.83631982]
[1743177660484,5.448,1877.7,1877.5,3.83631982]
[1743177660485,6.279,1877.7,1877.5,3.83631982]
[1743177661076,5.448,1877.7,1877.5,3.83631982]
[1743177661248,0.831,1877.6,1877.5,3.83631982]
[1743177661959,0.831,1877.6,1877.4,3.83631982]
[1743177662554,0.831,1877.6,1877.1,3.0]
[1743177662751,0.831,1877.6,1877.4,3.83631982]
[1743177662975,0.831,1877.6,1877.1,3.44718581]
[1743177663175,0.831,1877.6,1877.5,3.83631982]
[1743177664583,0.831,1877.6,1877.4,3.83631982]
[1743177664788,0.831,1877.6,1877.1,0.39391908]
[1743177664979,0.831,1877.6,1877.3,3.83631982]
[1743177665289,0.831,1877.6,1877.3,3.78303762]
[1743177666085,0.831,1877.6,1876.3,0.8165]
[1743177666293,0.8018,1877.4,1876.5,3.83631982]
[1743177666473,5.445,1877.3,1876.5,3.83631982]
[1743177666679,0.8018,1877.2,1876.5,3.83631982]
[1743177666867,0.8018,1877.0,1876.5,3.83631982]
[1743177667059,5.443,1876.9,1876.5,3.83631982]
[1743177667255,5.443,1876.9,1876.4,3.83631982]
[1743177667457,0.8018,1876.8,1876.5,3.83631982]
[1743177668073,0.8018,1876.8,1876.7,3.83631982]
[1743177668473,0.8018,1876.8,1876.5,3.83631982]
[1743177669959,0.8018,1876.8,1876.7,3.83631982]
[1743177670184,0.8018,1876.8,1876.1,0.0532891]
[1743177670423,3.0,1876.1,1875.2,3.83631982]
[1743177670556,34.56873955,1876.0,1875.2,3.83631982]
[1743177670759,35.85709517,1876.0,1875.4,3.83631982]
[1743177671003,34.5154,1876.0,1875.6,3.83631982]
[1743177671162,34.5154,1876.0,1875.2,3.83631982]
[1743177671484,0.7911,1875.9,1875.2,3.83631982]
[1743177671685,5.64533955,1875.8,1875.2,3.83631982]
[1743177672068,5.64533955,1875.8,1875.4,3.83631982]
[1743177673113,5.64533955,1875.8,1875.1,3.83631982]
[1743177673590,5.64533955,1875.8,1875.3,3.83631982]
[1743177673902,5.58,1875.7,1875.5,3.83631982]
[1743177674109,0.05333955,1875.6,1875.5,3.83631982]
[1743177674312,3.88965937,1875.6,1874.8,0.005]
[1743177674470,0.806,1875.4,1874.8,0.005]
[1743177674659,0.7746,1875.2,1874.8,0.005]
[1743177674864,0.7746,1875.0,1874.8,0.005]
[1743177675075,28.24933955,1874.9,1874.8,0.005]
[1743177675310,28.196,1874.9,1874.8,0.005]
[1743177676459,33.83,1874.9,1874.8,3.84131982]
[1743177676675,33.83,1874.9,1874.8,7.2254518]
[1743177676939,33.83,1874.9,1874.8,7.7754518]
[1743177677063,33.83,1874.9,1874.8,4.76023198]
[1743177677064,5.634,1874.9,1874.8,4.76023198]
[1743177677965,5.634,1874.9,1874.8,3.8261]
[1743177678280,5.634,1874.9,1874.8,0.005]
[1743177678475,5.634,1874.9,1874.8,3.005]
[1743177679003,5.634,1874.9,1874.8,0.005]
[1743177680077,5.634,1874.9,1874.3,4.89056042]
[1743177680311,0.05333955,1874.8,1874.1,0.21453631]
[1743177680480,0.05333955,1874.8,1874.1,0.1611901]
[1743177680704,0.05333955,1874.8,1874.2,0.55]
[1743177680889,5.634,1874.9,1874.4,3.0]
[1743177681213,0.05333955,1874.8,1874.4,3.0]
[1743177682988,28.986,1875.0,1874.4,3.0]
[1743177683189,5.626,1874.9,1874.5,0.7816]
[1743177683493,5.67933955,1874.9,1874.5,0.7124263]
[1743177684513,5.626,1874.9,1874.5,0.7124263]
[1743177685100,5.616,1874.8,1874.7,3.0]
[1743177686492,0.05333955,1875.2,1874.7,3.0]
[1743177686693,0.05333955,1875.2,1874.8,0.60333374]
[1743177686919,5.606,1875.1,1875.0,3.0]
[1743177687127,28.216,1875.3,1875.0,4.18648246]
[1743177687293,5.622,1875.2,1875.0,4.18648246]
[1743177687493,28.216,1875.3,1875.1,0.55]
[1743177687688,5.62,1875.2,1875.1,0.55]
[1743177687894,5.618,1875.2,1875.1,0.55]
[1743177689452,5.615,1875.2,1875.1,3.55]
[1743177690129,5.615,1875.2,1875.0,0.39728246]
[1743177690307,5.615,1875.2,1874.8,3.0]
[1743177690709,5.615,1875.2,1874.7,4.90596532]
[1743177690935,0.05333955,1875.1,1874.8,3.0]
[1743177691147,0.05333955,1875.1,1874.7,0.7892]
[1743177691348,0.05333955,1875.1,1874.5,3.0]
[1743177691499,0.05333955,1875.1,1874.5,3.7892]
[1743177691700,0.05333955,1875.1,1874.5,4.19039066]
[1743177691904,0.05333955,1875.1,1874.5,1.19039066]
[1743177692437,0.05333955,1875.1,1874.5,4.19039066]
[1743177692941,0.05333955,1875.1,1874.5,3.40119066]
[1743177693105,0.8212,1875.0,1874.5,0.40119066]
[1743177693305,0.05333955,1874.9,1874.3,0.7892]
[1743177693520,5.602,1874.8,1874.3,0.7892]
[1743177694595,5.602,1874.8,1874.3,1.19159363]
[1743177695330,0.7586,1874.7,1874.3,0.40239363]
[1743177695525,0.7586,1874.7,1874.1,4.27795542]
[1743177695526,0.05333955,1874.6,1874.1,4.27795542]
[1743177695737,0.05333955,1874.6,1874.2,3.0]
[1743177697538,0.05333955,1874.6,1874.2,3.39634749]
[1743177698429,0.8241,1874.5,1874.1,0.1611901]
[1743177698641,34.384,1875.3,1874.1,0.1611901]
[1743177698642,0.87743955,1874.4,1874.1,0.1611901]
[1743177698864,5.647,1874.3,1874.1,0.1611901]
[1743177699366,29.09133955,1874.2,1874.1,0.1611901]
[1743177699510,29.038,1874.2,1874.1,0.1611901]
[1743177700131,28.22,1874.2,1874.1,0.1611901]
[1743177700338,0.7972,1874.1,1873.7,4.51840707]
[1743177700562,5.691,1874.0,1873.8,3.0]
[1743177700915,28.22,1874.2,1873.9,7.63693996]
[1743177701110,0.809,1874.8,1874.2,5.33556]
[1743177701312,5.71,1874.7,1874.6,3.84473996]
[1743177702133,5.71,1874.7,1874.4,3.84473996]
[1743177703233,5.71,1874.7,1874.2,0.40768938]
[1743177703234,0.05333955,1874.6,1874.2,0.40768938]
[1743177703439,0.05333955,1874.6,1873.9,9.12861]
[1743177703627,0.809,1874.8,1874.5,3.84473996]
[1743177703628,0.86233955,1874.8,1874.5,3.84473996]
[1743177703825,5.712,1874.7,1874.2,8.33545]
[1743177704028,5.712,1874.7,1874.6,3.84473996]
[1743177704517,28.224,1874.9,1874.6,12.17917996]
[1743177704723,0.05,1875.9,1874.6,12.17917996]
[1743177704724,0.7936,1875.4,1874.8,6.84473996]
[1743177704946,5.76833955,1875.3,1874.9,3.84473996]
[1743177705127,5.76833955,1875.3,1875.1,3.84473996]
[1743177705327,5.76833955,1875.3,1874.8,3.0]
[1743177705328,5.76833955,1875.3,1875.0,3.84473996]
[1743177706955,5.76833955,1875.3,1874.8,4.11554157]
[1743177707249,5.76833955,1875.3,1874.8,4.5168909]
[1743177707640,5.715,1875.3,1874.8,5.2704909]
[1743177707823,5.715,1875.3,1874.8,10.6043709]
[1743177708019,0.84693955,1875.4,1874.8,10.6043509]
[1743177708255,5.703,1875.2,1874.9,5.33359]
[1743177708425,0.05333955,1875.5,1874.9,5.33359]
[1743177708619,5.702,1875.4,1874.9,3.0]
[1743177709919,5.702,1875.4,1875.1,4.11554157]
[1743177710154,5.689,1875.3,1875.2,0.05332337]
[1743177710361,5.689,1875.3,1875.1,4.11554157]
[1743177710649,5.689,1875.3,1875.1,10.92674773]
[1743177711130,0.05,1875.9,1875.2,4.38962075]
[1743177711333,5.745,1875.9,1875.8,4.11554157]
[1743177712538,5.745,1875.9,1875.8,4.66554157]
[1743177713250,5.745,1875.9,1875.8,5.05700249]
[1743177715067,5.745,1875.9,1875.6,3.0]
[1743177716844,5.745,1875.9,1875.6,2.9466951]
[1743177717047,5.745,1875.9,1875.8,4.11554157]
[1743177717237,5.745,1875.9,1875.8,4.66554157]
[1743177718427,0.05,1875.9,1875.8,10.78119157]
[1743177718632,5.737,1875.9,1875.8,10.78119157]
[1743177718967,28.221,1876.3,1876.2,3.55]
[1743177719175,0.8138,1876.9,1876.5,3.0]
[1743177719336,5.687,1876.8,1876.7,3.0]
[1743177720532,0.8056,1876.7,1876.3,3.0]
[1743177720736,0.05333955,1876.6,1876.3,3.0]
[1743177722256,0.85893955,1876.7,1876.3,3.0]
[1743177722543,5.688,1876.6,1876.5,4.11554157]
[1743177722851,5.686,1876.6,1876.5,4.11554157]
[1743177723367,5.686,1876.6,1876.5,7.11554157]
[1743177723575,5.686,1876.6,1876.5,9.68180573]
[1743177723943,28.209,1877.0,1876.6,3.55]
[1743177724155,28.209,1877.0,1876.9,3.0]
[1743177724374,33.888,1877.0,1876.9,3.0]
[1743177726472,28.209,1877.0,1876.9,3.0]
[1743177726673,33.88,1877.0,1876.9,3.0]
[1743177727604,33.88,1877.0,1876.6,4.04651162]
[1743177727762,0.05333955,1876.9,1876.6,4.04651162]
[1743177727962,0.87213955,1876.9,1876.5,4.11554157]
[1743177728167,33.88,1877.0,1876.5,4.11554157]
[1743177728379,0.05333955,1876.9,1876.6,3.0]
[1743177728864,0.05333955,1876.9,1876.8,3.83420126]
[1743177730663,5.668,1876.9,1876.8,6.83420126]
[1743177732404,28.209,1877.0,1876.8,6.83420126]
[1743177732797,5.657,1876.9,1876.8,6.83420126]
[1743177734806,5.657,1876.9,1876.8,3.83420126]
[1743177735011,5.71033955,1876.9,1876.6,10.00420126]
[1743177735174,5.71033955,1876.9,1876.6,9.95089636]
[1743177735672,0.7686,1876.8,1876.6,6.1166951]
[1743177735910,0.05333955,1876.7,1876.6,6.1166951]
[1743177736117,0.05333955,1876.7,1876.4,9.91089636]
[1743177736429,0.7609,1876.6,1876.4,9.91089636]
[1743177736575,5.69833955,1876.5,1876.4,9.91089636]
[1743177736782,5.69833955,1876.5,1876.4,3.83420126]
[1743177737112,0.7584,1876.8,1876.4,7.66840252]
[1743177737320,28.9674,1877.0,1876.7,6.83420126]
[1743177737534,5.645,1876.9,1876.8,9.12997417]
[1743177737694,0.7584,1877.2,1877.0,3.0]
[1743177738175,5.644,1877.1,1877.0,3.0]
[1743177738929,0.7584,1877.2,1877.0,3.0]
[1743177739075,5.638,1877.1,1877.0,6.83420126]
[1743177739901,5.632,1877.1,1877.0,6.83420126]
[1743177741203,5.632,1877.1,1877.0,12.91089636]
[1743177741403,5.622,1877.1,1877.0,12.91089636]
[1743177741828,0.05333955,1877.3,1877.0,12.91089636]
[1743177742003,29.0048,1877.5,1877.2,3.83420126]
[1743177742198,5.67133955,1877.4,1877.2,3.83420126]
[1743177742425,5.67133955,1877.4,1877.0,12.91089636]
[1743177743425,0.8268,1877.3,1877.0,6.0766951]
[1743177743732,0.05333955,1877.2,1877.0,6.0766951]
[1743177743889,0.05333955,1877.2,1877.0,9.91089636]
[1743177745333,0.05333955,1877.2,1877.0,6.0766951]
[1743177745636,0.05333955,1877.2,1877.0,9.91089636]
[1743177748732,5.597,1877.1,1877.0,12.91089636]
[1743177748937,5.594,1877.1,1877.0,12.91089636]
[1743177751035,6.3752,1877.1,1877.0,6.0766951]
[1743177751413,34.5642,1877.1,1876.7,3.83420126]
[1743177751592,0.05333955,1877.0,1876.7,3.83420126]
[1743177753150,0.7683,1876.9,1876.5,6.83420126]
[1743177753347,0.05333955,1876.8,1876.5,6.73265626]
[1743177753552,5.593,1876.7,1876.5,6.73265626]
[1743177756135,5.578,1876.6,1876.5,18.06210766]
[1743177756343,28.189,1877.1,1876.8,3.0]
[1743177756541,28.189,1877.1,1877.0,3.0]
[1743177756827,28.189,1877.1,1876.9,3.83420126]
[1743177757149,5.582,1877.0,1876.9,6.83420126]
[1743177757925,5.582,1877.0,1876.9,3.83420126]
[1743177758124,5.63533955,1877.0,1876.9,3.83420126]
[1743177758366,0.7769,1876.9,1876.7,3.0]
[1743177758560,0.05333955,1876.8,1876.7,3.0]
[1743177758958,0.7846,1876.7,1876.2,6.0766951]
[1743177759147,5.62933955,1876.6,1876.2,6.0766951]
[1743177759678,0.8119,1876.5,1876.2,6.0766951]
[1743177759877,0.05333955,1876.4,1876.2,6.0766951]
[1743177760060,0.05333955,1876.4,1876.0,3.83420126]
[1743177760284,0.8119,1876.3,1875.9,3.83420126]
[1743177760441,5.63633955,1876.2,1875.9,3.83420126]
[1743177762340,5.63633955,1876.2,1876.1,3.83420126]
[1743177762539,5.583,1876.2,1876.1,3.83420126]
[1743177763401,0.8119,1876.3,1875.9,9.91089636]
[1743177763555,5.62633955,1876.2,1875.9,9.91089636]
[1743177763759,5.62633955,1876.2,1876.1,3.83420126]
[1743177764084,3.27777751,1877.0,1876.1,3.83420126]
[1743177764085,0.05333955,1876.7,1876.1,6.83420126]
[1743177764289,6.4046,1876.6,1876.4,3.83420126]
[1743177764457,0.05333955,1876.5,1876.4,3.83420126]
[1743177765270,0.05333955,1876.5,1876.3,3.83420126]
[1743177765500,0.05333955,1876.5,1876.2,3.83420126]
[1743177765813,0.05333955,1876.5,1876.1,12.91089636]
[1743177766879,0.05333955,1876.5,1876.3,3.83420126]
[1743177767807,5.56,1876.4,1876.3,3.83420126]
[1743177768195,5.56,1876.4,1876.2,3.83420126]
[1743177768430,28.25133955,1876.5,1876.2,3.83420126]
[1743177768575,28.198,1876.5,1876.4,3.83420126]
[1743177768774,33.757,1876.5,1876.4,4.63150126]
[1743177768975,33.757,1876.5,1876.4,12.002016]
[1743177769191,33.757,1876.5,1876.4,17.331366]
[1743177769411,33.757,1876.5,1876.4,24.71556726]
[1743177770270,33.757,1876.5,1876.4,19.38621726]
[1743177770885,33.757,1876.5,1876.4,25.12303394]
[1743177771917,33.757,1876.5,1876.4,26.19101584]
[1743177772719,28.9585,1877.2,1876.5,8.32892]
[1743177773019,5.59433955,1877.1,1876.6,6.161572]
[1743177773176,5.59433955,1877.1,1876.6,11.490242]
[1743177773379,0.05333955,1877.1,1876.8,0.776]
[1743177773605,5.538,1877.0,1876.8,1.7596]
[1743177773811,5.536,1876.9,1876.8,0.776]
[1743177773991,5.536,1876.9,1876.8,4.61020126]
[1743177774202,5.536,1876.9,1876.8,7.61020126]
[1743177774383,28.197,1877.2,1876.9,3.0]
[1743177774584,28.197,1877.2,1877.1,6.83420126]
[1743177774774,33.733,1877.2,1877.1,6.83420126]
[1743177777029,28.197,1877.2,1877.1,14.09929896]
[1743177777325,33.72,1877.2,1877.1,16.04197986]
[1743177777797,33.72,1877.2,1877.1,21.36933986]
[1743177778203,28.197,1877.2,1877.1,21.91933986]
[1743177778521,33.714,1877.2,1877.1,9.4625977]
[1743177778732,33.714,1877.2,1877.1,13.29679896]
[1743177779938,33.722,1877.2,1877.1,13.29679896]
[1743177780814,33.722,1877.2,1877.1,12.89420126]
[1743177781625,28.197,1877.2,1877.1,13.64770126]
[1743177781831,33.718,1877.2,1877.1,15.54522639]
[1743177782027,5.519,1877.2,1877.1,15.54522639]
[1743177782810,5.519,1877.2,1877.1,13.64770126]
[1743177783629,5.519,1877.2,1877.1,13.30040987]
[1743177783832,5.519,1877.2,1877.1,12.89420126]
[1743177784048,6.3381,1877.2,1877.1,6.06]
[1743177784202,6.3381,1877.2,1876.8,3.83420126]
[1743177784421,0.05333955,1877.1,1876.8,3.83420126]
[1743177784929,0.8191,1877.2,1877.0,3.83420126]
[1743177785108,5.521,1877.1,1877.0,3.83420126]
[1743177787519,5.521,1877.1,1876.9,6.06]
[1743177787841,0.05333955,1877.0,1876.9,6.06]
[1743177788057,5.521,1877.1,1877.0,6.83420126]
[1743177788058,0.05333955,1877.1,1877.0,6.83420126]
[1743177788221,0.05333955,1877.5,1877.2,0.8221]
[1743177788543,0.05333955,1877.5,1877.4,6.83420126]
[1743177788544,5.523,1877.5,1877.4,6.83420126]
[1743177788707,5.523,1877.5,1877.4,12.89420126]
[1743177789335,5.523,1877.5,1877.4,13.29076191]
[1743177789541,28.19,1877.6,1877.4,13.29076191]
[1743177789707,28.19,1877.6,1877.5,9.06]
[1743177790038,33.71,1877.6,1877.5,9.06]
[1743177792055,34.5155,1877.6,1877.5,6.06]
[1743177794046,33.71,1877.6,1877.2,3.83420126]
[1743177794331,0.82383955,1877.5,1877.0,9.89420126]
[1743177795245,0.82383955,1877.5,1877.2,3.83420126]
[1743177795434,28.186,1877.4,1877.2,3.83420126]
[1743177795637,28.186,1877.4,1877.3,3.83420126]
[1743177796112,33.695,1877.4,1877.3,3.83420126]
[1743177797046,33.695,1877.4,1877.3,7.58880126]
[1743177799955,33.695,1877.4,1877.3,13.64880126]
[1743177800249,33.695,1877.4,1877.3,22.80979252]
[1743177800555,33.676,1877.4,1877.3,21.78927651]
[1743177800720,33.675,1877.4,1877.3,25.62347777]
[1743177800921,33.675,1877.4,1877.3,26.17347777]
[1743177801121,9.84332004,1877.4,1877.3,26.17347777]
[1743177801361,0.05,1877.9,1877.7,3.8272]
[1743177801663,0.05,1877.9,1877.8,9.89420126]
[1743177801861,5.539,1877.9,1877.8,9.89420126]
[1743177802552,0.05,1877.9,1877.8,14.26634139]
[1743177802757,0.05,1877.9,1877.8,19.59172139]
[1743177802971,1.05866416,1878.9,1878.3,5.32396]
[1743177803160,5.505,1878.8,1878.5,3.0]
[1743177803457,5.505,1878.8,1878.6,3.83420126]
[1743177803458,5.55833955,1878.8,1878.6,3.83420126]
[1743177804164,5.505,1878.8,1878.6,3.83420126]
[1743177806543,5.505,1878.8,1878.6,9.89420126]
[1743177808977,5.492,1878.7,1878.6,10.70600126]
[1743177809799,5.492,1878.7,1878.6,9.89420126]
[1743177811079,5.492,1878.7,1878.6,12.89420126]
[1743177811080,5.485,1878.7,1878.6,12.89420126]
[1743177815293,28.168,1879.0,1878.6,14.22379781]
[1743177815481,5.47,1878.7,1878.6,12.89420126]
[1743177815999,5.468,1878.7,1878.6,18.76722126]
[1743177816222,28.168,1879.0,1878.6,14.24520126]
[1743177816517,5.471,1879.1,1879.0,3.0]
[1743177816690,0.05333955,1879.5,1879.0,18.21617126]
[1743177816889,5.471,1879.4,1879.0,17.22003437]
[1743177817206,5.471,1879.4,1879.3,6.83420126]
[1743177817804,5.471,1879.4,1879.3,3.0]
[1743177818486,5.467,1879.4,1879.3,3.0]
[1743177818697,5.467,1879.4,1879.3,9.06]
[1743177818887,5.467,1879.4,1879.3,9.8823]
[1743177819092,28.2791901,1879.7,1879.4,3.0]
[1743177819297,28.2791901,1879.7,1879.6,3.83420126]
[1743177819465,33.7411901,1879.7,1879.6,3.83420126]
[1743177820066,33.7411901,1879.7,1879.6,10.28658797]
[1743177820488,33.7411901,1879.7,1879.6,9.89420126]
[1743177823099,33.7411901,1879.7,1879.6,12.89420126]
[1743177823682,33.7221901,1879.7,1879.6,12.89420126]
[1743177824082,33.7221901,1879.7,1879.6,13.29394998]
[1743177824282,33.7181901,1879.7,1879.6,15.38834498]
[1743177826283,33.7181901,1879.7,1879.6,12.89420126]
[1743177827692,33.7181901,1879.7,1879.6,9.06]
[1743177829414,33.7181901,1879.7,1879.6,3.0]
[1743177829617,33.7181901,1879.7,1879.6,6.83420126]
[1743177830515,28.2791901,1879.7,1879.6,6.83420126]
[1743177830812,33.6961901,1879.7,1879.6,6.83420126]
[1743177831427,5.5281901,1879.7,1879.6,6.83420126]
[1743177832691,5.5281901,1879.7,1879.5,6.14]
[1743177832915,0.05333955,1879.6,1879.5,9.14]
[1743177834507,5.5281901,1879.7,1879.5,9.14]
[1743177836595,0.84303955,1879.6,1879.5,6.14]
[1743177836931,0.84303955,1879.6,1879.0,3.83420126]
[1743177837134,0.84303955,1879.6,1879.0,3.83723054]
[1743177838600,0.7513,1879.5,1878.9,3.0]
[1743177838803,0.7513,1879.3,1878.9,3.0]
[1743177839001,5.45933955,1879.2,1878.8,6.08]
[1743177839201,0.7513,1879.3,1878.8,6.08]
[1743177839202,0.7513,1879.3,1879.1,3.82614323]
[1743177839513,5.404,1879.2,1879.1,6.82614323]
[1743177839860,5.407,1879.2,1879.1,6.82614323]
[1743177840020,5.408,1879.2,1879.1,6.82614323]
[1743177840399,0.7814,1879.1,1878.9,9.90614323]
[1743177840630,0.83473955,1879.1,1879.0,3.0]
[1743177840836,5.408,1879.2,1879.0,3.0]
[1743177841130,0.7814,1879.0,1878.9,6.08]
[1743177842039,0.7814,1879.0,1878.6,3.82614323]
[1743177842203,0.05333955,1878.9,1878.6,6.82614323]
[1743177842404,5.419,1878.8,1878.6,6.82614323]
[1743177842599,5.419,1878.8,1878.7,6.08]
[1743177843340,5.419,1878.8,1878.7,10.40986158]
[1743177843833,5.419,1878.8,1878.7,10.95986158]
[1743177844044,5.419,1878.8,1878.7,11.20016158]
[1743177845538,5.419,1878.8,1878.7,16.52298158]
[1743177845742,5.419,1878.8,1878.7,11.20016158]
[1743177846442,0.8043,1879.3,1878.8,3.0]
[1743177846646,5.422,1879.2,1879.1,3.82614323]
[1743177847169,5.422,1879.2,1879.0,3.0]
[1743177847659,0.05333955,1879.1,1879.0,3.0]
[1743177849754,0.05333955,1879.1,1878.9,6.08]
[1743177851123,0.77,1879.0,1878.7,6.08]
[1743177851464,0.77,1878.8,1878.7,6.08]
[1743177851764,6.179,1878.8,1878.5,3.82614323]
[1743177851927,0.05333955,1878.7,1878.5,4.22383502]
[1743177852128,0.05333955,1878.7,1878.5,3.82614323]
[1743177853740,5.409,1878.8,1878.5,7.81675755]
[1743177853939,5.409,1878.8,1878.7,3.82614323]
[1743177854347,0.8108,1879.0,1878.7,3.82614323]
[1743177854522,0.05333955,1879.4,1878.9,3.82614323]
[1743177854523,0.8108,1879.3,1878.9,3.82614323]
[1743177854865,5.45833955,1879.2,1879.1,3.82614323]
[1743177855030,5.405,1879.2,1879.1,3.82614323]
[1743177855537,5.405,1879.2,1879.1,6.82614323]
[1743177855935,0.86413955,1879.5,1879.1,7.50875755]
[1743177856141,28.157,1879.6,1879.1,7.50875755]
[1743177856142,0.9219901,1879.7,1879.4,3.82614323]
[1743177856348,0.9219901,1879.7,1879.6,3.82614323]
[1743177856546,6.3259901,1879.7,1879.6,3.82614323]
[1743177856945,6.3259901,1879.7,1879.4,3.82614323]
[1743177857140,0.9219901,1879.7,1879.4,3.82614323]
[1743177857456,5.401,1879.6,1879.4,3.82614323]
[1743177858770,0.16452965,1879.7,1879.4,3.82614323]
[1743177858934,5.395,1879.5,1879.4,3.99061432]
[1743177859243,0.16452965,1879.7,1879.6,0.7951]
[1743177859244,0.1111901,1879.7,1879.6,0.7951]
[1743177859567,5.5051901,1879.7,1879.6,4.62124323]
[1743177860280,0.1111901,1879.7,1879.6,10.70124323]
[1743177860567,5.5001901,1879.7,1879.6,10.70124323]
[1743177860928,5.5001901,1879.7,1879.6,6.08]
[1743177862556,0.1111901,1879.7,1879.6,9.08]
[1743177862745,5.4991901,1879.7,1879.6,11.49921432]
[1743177864870,5.4991901,1879.7,1879.6,11.9013579]
[1743177866276,5.4991901,1879.7,1879.6,9.48214358]
[1743177867842,5.4991901,1879.7,1879.6,9.08]
[1743177868944,5.4991901,1879.7,1879.6,9.48126353]
[1743177870068,6.3163901,1879.7,1879.6,6.08]
[1743177870265,6.3163901,1879.7,1879.4,3.0]
[1743177870498,0.05333955,1879.6,1879.4,3.0]
[1743177870874,0.05333955,1879.6,1879.5,3.83531241]
[1743177871618,0.1111901,1879.7,1879.6,8.32028]
[1743177871753,0.1111901,1879.7,1879.6,3.0]
[1743177871954,0.1111901,1879.7,1879.6,8.32028]
[1743177872456,0.1111901,1879.7,1879.6,8.37347356]
[1743177872798,0.1111901,1879.7,1879.6,8.32028]
[1743177872971,0.1111901,1879.7,1879.6,14.64688536]
[1743177873674,0.05,1879.9,1879.7,5.3199]
[1743177873866,0.05,1879.9,1879.8,9.14081899]
[1743177874174,0.05,1879.9,1879.8,3.82110899]
[1743177874353,0.05,1879.9,1879.8,9.91941899]
[1743177874555,0.05,1879.9,1879.8,5.34504089]
[1743177874753,0.05,1879.9,1879.8,6.82110899]
[1743177876109,0.05,1879.9,1879.8,12.90110899]
[1743177878164,0.05,1879.9,1879.8,9.08]
[1743177878356,0.05,1879.9,1879.8,12.90110899]
[1743177882369,0.05,1879.9,1879.8,18.22081899]
[1743177882603,0.05,1879.9,1879.8,20.75620598]
[1743177886511,0.05,1879.9,1879.8,12.90110899]
[1743177887504,0.05,1879.9,1879.8,18.22081899]
[1743177889809,0.05,1879.9,1879.8,12.90110899]
[1743177892222,0.05,1879.9,1879.8,13.67490899]
[1743177892812,0.05,1879.9,1879.8,12.90110899]
[1743177893286,0.05,1879.9,1879.8,13.16323292]
[1743177893706,0.05,1879.9,1879.8,12.90110899]
[1743177895012,0.05,1879.9,1879.8,12.91278567]
[1743177898995,0.10333955,1879.9,1879.8,12.91278567]
[1743177899618,0.05,1879.9,1879.8,12.91278567]
[1743177903428,5.364,1879.9,1879.8,14.28591424]
[1743177904295,5.364,1879.9,1879.8,12.91278567]
[1743177904732,5.364,1879.9,1879.8,9.08]
[1743177904934,5.364,1879.9,1879.8,12.91278567]
[1743177907113,5.364,1879.9,1879.8,9.08]
[1743177907308,5.364,1879.9,1879.8,12.91278567]
[1743177908123,6.182,1879.9,1879.8,12.91278567]
[1743177908349,6.182,1879.9,1879.8,6.08]
[1743177909640,6.182,1879.9,1879.8,9.91278567]
[1743177910822,6.182,1879.9,1879.8,6.08]
[1743177912727,6.182,1879.9,1879.8,9.91278567]
[1743177913349,6.182,1879.9,1879.8,6.08]
[1743177914263,6.182,1879.9,1879.6,3.83278567]
[1743177914558,0.05333955,1879.8,1879.6,3.83278567]
[1743177915973,0.05333955,1879.8,1879.4,6.08]
[1743177915974,0.7863,1879.7,1879.4,6.08]
[1743177916153,0.7863,1879.7,1879.2,1.31430336]
[1743177916154,0.7863,1879.5,1879.0,6.08]
[1743177916371,5.37333955,1879.4,1879.0,9.91278567]
[1743177916549,6.1063,1879.3,1879.0,9.91278567]
[1743177916864,0.05333955,1879.2,1879.0,6.08]
[1743177917769,0.05333955,1879.2,1879.1,3.83278567]
[1743177918965,6.1063,1879.3,1879.1,3.83278567]
[1743177919539,0.7693,1879.5,1879.1,3.83278567]
[1743177919768,0.7693,1879.8,1879.4,3.83278567]
[1743177919955,5.318,1879.7,1879.4,3.83278567]
[1743177921780,0.05333955,1879.6,1879.4,3.83278567]
[1743177922681,5.318,1879.7,1879.5,3.83278567]
[1743177923183,0.05,1879.9,1879.6,6.08]
[1743177923390,0.05,1879.9,1879.7,3.83278567]
[1743177923691,5.31,1879.8,1879.7,6.83278567]
[1743177924601,5.31,1879.8,1879.7,3.0]
[1743177924885,5.31,1879.8,1879.6,6.08]
[1743177925118,5.31,1879.8,1879.6,9.91278567]
[1743177926451,0.05333955,1879.7,1879.6,6.08]
[1743177927950,0.10333955,1879.9,1879.6,9.91278567]
[1743177928157,5.305,1879.8,1879.6,9.91278567]
[1743177931302,0.05333955,1879.7,1879.6,6.08]
[1743177931599,0.85313955,1879.7,1879.6,6.08]
[1743177931960,5.305,1879.8,1879.6,6.08]
[1743177932978,0.05,1879.9,1879.7,9.91278567]
[1743177933178,0.05,1879.9,1879.8,9.8549]
[1743177934893,0.05,1879.9,1879.8,13.67633004]
[1743177935803,0.05,1879.9,1879.8,6.08]
[1743177936107,0.10333955,1879.9,1879.8,6.08]
[1743177937481,0.05,1879.9,1879.8,6.08]
[1743177945809,0.05,1879.9,1879.8,9.08]